bitfinex/quotes_BTCUSD_20250527
["timestamp","ask_amount","ask_price","bid_price","bid_amount"]
[1748362230201,0.22916836,110050.0,110040.0,7.43144391]
[1748362230420,0.03834602,110050.0,110040.0,7.44961803]
[1748362230646,0.22008159,110050.0,110040.0,7.44961803]
[1748362230868,0.22008159,110050.0,110040.0,7.38104603]
[1748362231095,0.22008159,110050.0,110040.0,7.39718803]
[1748362231324,0.22008159,110050.0,110040.0,7.34068903]
[1748362231563,0.22008159,110050.0,110040.0,7.42341803]
[1748362232213,0.22008159,110050.0,110040.0,7.39601803]
[1748362232893,0.03834602,110050.0,110040.0,7.39601803]
[1748362233573,0.37004532,110050.0,110040.0,0.005]
[1748362233800,0.63012282,110050.0,110040.0,0.005]
[1748362234254,0.63012282,110050.0,110010.0,0.08932]
[1748362234255,0.25276305,110020.0,110010.0,0.08932]
[1748362234488,0.24369156,110010.0,110000.0,0.002]
[1748362234953,0.33474551,110010.0,110000.0,0.00208976]
[1748362235445,0.33474551,110010.0,110000.0,0.89163378]
[1748362235446,0.24169156,110010.0,110000.0,0.89163378]
[1748362236086,0.24169156,110010.0,110000.0,0.34408976]
[1748362236332,0.24169156,110010.0,110000.0,0.00208976]
[1748362236545,0.24169156,110010.0,110000.0,0.34308976]
[1748362236762,0.24169156,110010.0,110000.0,0.00308976]
[1748362236990,0.37150949,110010.0,110000.0,0.00208976]
[1748362237426,0.33274551,110010.0,110000.0,0.00208976]
[1748362237664,0.33374551,110010.0,110000.0,0.00208976]
[1748362244758,0.61802551,110010.0,110000.0,0.00208976]
[1748362245409,0.33374551,110010.0,110000.0,0.00208976]
[1748362245637,0.24269156,110010.0,110000.0,0.00208976]
[1748362245857,0.21609156,110010.0,110000.0,0.51787501]
[1748362246278,0.21609156,110010.0,110000.0,0.00208976]
[1748362246535,0.19898139,110010.0,110000.0,1.05105663]
[1748362246781,0.18989156,110010.0,110000.0,0.85787501]
[1748362248969,0.18989156,110010.0,110000.0,1.25787501]
[1748362249375,0.18989156,110010.0,110000.0,0.74208976]
[1748362250245,0.24219156,110010.0,110000.0,0.74208976]
[1748362250672,0.24219156,110010.0,110000.0,0.71708976]
[1748362250886,0.24219156,110010.0,110000.0,0.31708976]
[1748362252194,0.2000176,109990.0,109980.0,0.002]
[1748362252407,0.2000176,109990.0,109980.0,0.010493]
[1748362252408,0.2532176,109990.0,109980.0,0.010493]
[1748362253091,0.2532176,109990.0,109980.0,0.350493]
[1748362253347,0.2000176,109990.0,109980.0,0.8662763]
[1748362253584,0.2000176,109990.0,109980.0,0.86083465]
[1748362253797,0.2000176,109990.0,109980.0,0.8712761]
[1748362254462,0.2000176,109990.0,109980.0,0.87127569]
[1748362255124,0.2000176,109990.0,109980.0,0.35549044]
[1748362255336,0.2000176,109990.0,109980.0,0.87127569]
[1748362255752,0.2000176,109990.0,109980.0,0.75549044]
[1748362256181,0.34187155,109990.0,109980.0,0.01549044]
[1748362256692,0.34187155,109990.0,109980.0,0.01549248]
[1748362256940,0.34187155,109990.0,109980.0,0.0070494]
[1748362257151,0.34187155,109990.0,109980.0,0.01549251]
[1748362257581,0.34187155,109990.0,109980.0,0.01349312]
[1748362257798,0.34287155,109990.0,109980.0,0.01349312]
[1748362258012,0.34287155,109990.0,109980.0,0.01049312]
[1748362258456,0.34287155,109990.0,109980.0,0.0020494]
[1748362259343,0.39534202,109990.0,109980.0,0.0020494]
[1748362260006,0.39534202,109990.0,109980.0,0.3420494]
[1748362261324,0.39534202,109990.0,109980.0,0.35050459]
[1748362261543,0.39534202,109990.0,109980.0,0.3420494]
[1748362261965,0.39534202,109990.0,109980.0,0.35051178]
[1748362262410,0.39534202,109990.0,109980.0,0.35686584]
[1748362262627,0.67914202,109990.0,109980.0,0.01687552]
[1748362263052,0.67914202,109990.0,109980.0,0.01052147]
[1748362263267,0.67914202,109990.0,109980.0,0.00852147]
[1748362263485,0.67914202,109990.0,109980.0,0.01490356]
[1748362264402,0.62667155,109990.0,109980.0,0.00853749]
[1748362266051,0.62667155,109990.0,109980.0,4.94e-05]
[1748362266254,0.62667155,109990.0,109980.0,0.0085325]
[1748362266524,0.34287155,109990.0,109980.0,0.00853118]
[1748362267002,0.34287155,109990.0,109980.0,0.00853023]
[1748362267965,0.41416722,109990.0,109980.0,0.00852917]
[1748362268463,0.41416722,109990.0,109980.0,0.00852912]
[1748362269547,0.34287155,109990.0,109980.0,0.00852912]
[1748362269739,0.34287155,109990.0,109980.0,0.00852921]
[1748362271104,0.34287155,109990.0,109980.0,0.00852922]
[1748362273446,0.34287155,109990.0,109980.0,0.00852859]
[1748362274865,0.34287155,109990.0,109980.0,0.00852803]
[1748362275085,0.34287155,109990.0,109980.0,0.00852802]
[1748362275558,0.42372602,109990.0,109980.0,0.00852802]
[1748362276036,0.29207155,109990.0,109980.0,0.00852802]
[1748362276307,0.29207155,109990.0,109980.0,0.00852782]
[1748362276861,0.29207155,109990.0,109980.0,0.00852812]
[1748362277114,0.29207155,109990.0,109980.0,0.00852974]
[1748362278504,0.29207155,109990.0,109980.0,4.94e-05]
[1748362278757,0.29207155,109990.0,109980.0,0.3400494]
[1748362279031,0.29207155,109990.0,109980.0,0.34853606]
[1748362279290,0.29207155,109990.0,109980.0,0.34853661]
[1748362280681,0.29207155,109990.0,109980.0,0.34854398]
[1748362281232,1.05923187,109990.0,109980.0,0.00854398]
[1748362281478,0.50878327,109990.0,109980.0,0.00854455]
[1748362282224,0.34267155,109990.0,109980.0,0.00854455]
[1748362282507,0.34267155,109990.0,109980.0,0.00854685]
[1748362282759,0.62651155,109990.0,109980.0,0.00854685]
[1748362283433,0.62651155,109990.0,109980.0,0.00854666]
[1748362283878,0.62651155,109990.0,109980.0,0.00854668]
[1748362284090,0.7175655,109990.0,109980.0,0.00854668]
[1748362284970,0.7175655,109990.0,109980.0,0.00854927]
[1748362285303,1.2680141,109990.0,109980.0,0.00854927]
[1748362285305,0.7175655,109990.0,109980.0,0.008549]
[1748362285717,1.29349916,109990.0,109980.0,0.008549]
[1748362285933,1.30804001,109990.0,109980.0,4.94e-05]
[1748362286158,1.33872114,109990.0,109980.0,4.94e-05]
[1748362286373,1.36971856,109990.0,109980.0,4.94e-05]
[1748362286599,0.20005397,109970.0,109960.0,0.002]
[1748362286791,0.34390792,109970.0,109960.0,0.01050052]
[1748362287211,0.34390792,109970.0,109960.0,0.01049835]
[1748362287644,0.34390792,109970.0,109960.0,0.01149835]
[1748362288662,0.34390792,109970.0,109960.0,0.01149686]
[1748362288911,0.34390792,109970.0,109960.0,0.01149689]
[1748362289137,1.24535478,109970.0,109960.0,0.01149689]
[1748362289366,1.24535478,109970.0,109960.0,0.01249689]
[1748362289794,1.24535478,109970.0,109960.0,0.004]
[1748362290017,1.24535478,109970.0,109960.0,0.003]
[1748362290491,1.24835478,109970.0,109960.0,0.003]
[1748362290699,1.33695478,109970.0,109960.0,0.002]
[1748362291128,1.35362478,109970.0,109960.0,0.002]
[1748362291345,1.35662478,109970.0,109960.0,0.002]
[1748362291781,0.80617618,109970.0,109960.0,0.002]
[1748362291987,1.33995478,109970.0,109960.0,0.002]
[1748362293701,1.3536715,109970.0,109960.0,0.002]
[1748362295901,1.3636715,109970.0,109960.0,0.002]
[1748362296616,1.3536715,109970.0,109960.0,0.002]
[1748362297291,1.3506715,109970.0,109960.0,0.002]
[1748362297746,1.73557557,109960.0,109950.0,0.0166692]
[1748362297970,1.97513433,109960.0,109950.0,0.0166692]
[1748362298196,1.94310545,109960.0,109950.0,0.0166692]
[1748362298423,2.005781,109960.0,109950.0,0.0166692]
[1748362298908,2.57478244,109960.0,109950.0,0.0166692]
[1748362299148,0.19108263,109900.0,109890.0,0.23962596]
[1748362299387,0.19108263,109900.0,109890.0,0.04253693]
[1748362299627,0.19108263,109900.0,109890.0,0.01713693]
[1748362299874,0.31944304,109900.0,109890.0,0.35713695]
[1748362300121,0.31944304,109900.0,109890.0,0.01713755]
[1748362300609,0.31959105,109900.0,109890.0,0.01713755]
[1748362300841,0.32059105,109900.0,109890.0,0.02213755]
[1748362301103,0.21860002,109890.0,109880.0,0.002]
[1748362301328,0.21860002,109890.0,109880.0,0.0104545]
[1748362301329,0.39364918,109890.0,109880.0,0.0104545]
[1748362301792,0.41954918,109890.0,109880.0,0.0104545]
[1748362302044,0.18413163,109900.0,109880.0,1.00140076]
[1748362302293,0.18198195,109910.0,109900.0,0.3904]
[1748362302570,0.18198195,109910.0,109900.0,0.94979238]
[1748362302812,0.02729397,109910.0,109900.0,1.4968414]
[1748362303053,0.02729397,109910.0,109900.0,1.84498833]
[1748362303054,0.20016351,109910.0,109900.0,1.84498833]
[1748362303280,0.19106533,109910.0,109900.0,1.85854915]
[1748362303734,0.19106533,109910.0,109900.0,1.48449537]
[1748362303963,0.19206533,109910.0,109900.0,1.48749537]
[1748362304250,0.19206533,109910.0,109900.0,1.45366001]
[1748362304696,0.19206533,109910.0,109900.0,1.7594369]
[1748362304961,0.19206533,109910.0,109900.0,1.75033814]
[1748362305203,0.19206533,109910.0,109900.0,1.76853591]
[1748362305414,0.19206533,109910.0,109900.0,1.93089551]
[1748362305638,0.19206533,109910.0,109900.0,1.82530166]
[1748362305861,0.19206533,109910.0,109900.0,2.01638429]
[1748362306089,0.01009802,109910.0,109900.0,2.12728343]
[1748362306349,0.02829397,109910.0,109900.0,2.15027561]
[1748362306549,0.03739232,109910.0,109900.0,2.15027561]
[1748362307204,0.21935938,109910.0,109900.0,2.15027561]
[1748362307410,0.21935938,109910.0,109900.0,2.13207817]
[1748362307591,0.20116359,109910.0,109900.0,2.13207817]
[1748362308261,0.20116359,109910.0,109900.0,2.12407817]
[1748362308480,0.19206541,109910.0,109900.0,1.90936263]
[1748362308703,0.19206541,109910.0,109900.0,1.90090443]
[1748362309347,0.19206541,109910.0,109900.0,1.88390443]
[1748362309556,0.19206541,109910.0,109900.0,1.89236537]
[1748362309982,0.19206541,109910.0,109900.0,1.51972537]
[1748362310204,0.19206541,109910.0,109900.0,1.60836537]
[1748362310414,0.19206541,109910.0,109900.0,1.60836937]
[1748362310669,0.19206541,109910.0,109900.0,1.10251242]
[1748362310877,0.19206541,109910.0,109900.0,0.98411242]
[1748362311085,0.19206541,109910.0,109900.0,1.38411242]
[1748362311294,0.19206541,109910.0,109900.0,1.52841242]
[1748362313113,0.19206541,109910.0,109900.0,1.35821242]
[1748362313351,0.19206541,109910.0,109900.0,1.35821904]
[1748362313595,0.19206541,109910.0,109900.0,1.74497804]
[1748362314063,0.19206541,109910.0,109900.0,1.73650648]
[1748362314308,0.19206541,109910.0,109900.0,1.71636793]
[1748362315260,0.19206541,109910.0,109900.0,1.67625441]
[1748362316640,0.19206541,109910.0,109900.0,1.67625671]
[1748362316867,0.19206541,109910.0,109900.0,1.63521771]
[1748362317142,0.19206541,109910.0,109900.0,1.60971771]
[1748362318488,0.19206541,109910.0,109900.0,1.35822771]
[1748362318709,0.19206541,109910.0,109900.0,0.44161447]
[1748362319139,0.19206541,109910.0,109900.0,0.44162016]
[1748362319838,0.19206541,109910.0,109900.0,0.9582334]
[1748362320079,0.01009785,109910.0,109900.0,2.91881475]
[1748362320303,0.21935896,109910.0,109900.0,2.73654092]
[1748362320533,0.20116351,109910.0,109900.0,2.04229063]
[1748362320756,0.20116351,109910.0,109900.0,1.88184787]
[1748362321465,0.20116351,109910.0,109900.0,2.49049987]
[1748362321703,0.20116351,109910.0,109900.0,1.80281066]
[1748362321935,0.20116351,109910.0,109900.0,2.13791066]
[1748362322163,0.20116351,109910.0,109900.0,2.11191066]
[1748362323095,0.20116351,109910.0,109900.0,1.59529742]
[1748362323304,0.20116351,109910.0,109900.0,2.11191066]
[1748362323996,0.20116351,109910.0,109900.0,1.30280824]
[1748362324227,0.20116351,109910.0,109900.0,2.12124997]
[1748362324459,0.20116351,109910.0,109900.0,2.08577597]
[1748362324910,0.20116351,109910.0,109900.0,1.80177597]
[1748362325144,0.22836351,109910.0,109900.0,1.39267597]
[1748362325626,0.22836351,109910.0,109900.0,0.99267791]
[1748362326063,0.22836351,109910.0,109900.0,0.56403791]
[1748362326303,0.20116351,109910.0,109900.0,0.56403791]
[1748362326519,0.20116351,109910.0,109900.0,0.55554421]
[1748362326734,0.25506351,109910.0,109900.0,0.56403865]
[1748362326945,0.25506351,109910.0,109900.0,0.01298868]
[1748362327159,0.25506351,109910.0,109900.0,0.55554421]
[1748362327377,0.25506351,109910.0,109900.0,0.56403937]
[1748362327599,0.25506351,109910.0,109900.0,0.55554421]
[1748362327834,0.20116351,109910.0,109900.0,0.58084421]
[1748362328062,0.20116351,109910.0,109900.0,1.96695678]
[1748362328289,0.20116351,109910.0,109900.0,2.07807234]
[1748362328566,0.18398193,109930.0,109920.0,0.01819463]
[1748362328800,0.18398193,109930.0,109920.0,2.79655937]
[1748362328801,0.20212717,109930.0,109920.0,2.79655937]
[1748362329026,0.20212717,109930.0,109920.0,2.63893489]
[1748362329257,0.20212717,109930.0,109920.0,0.34]
[1748362329517,0.20212717,109930.0,109920.0,0.00849076]
[1748362329518,0.38338723,109930.0,109920.0,0.00849076]
[1748362329735,0.20016317,109910.0,109900.0,0.00349424]
[1748362329959,0.20016317,109910.0,109900.0,0.35198736]
[1748362330170,0.22566317,109910.0,109900.0,0.35198736]
[1748362330392,0.22566317,109910.0,109900.0,0.34898736]
[1748362330608,0.20016317,109910.0,109900.0,0.34898736]
[1748362331287,0.20016317,109910.0,109900.0,0.34998736]
[1748362331507,0.22746317,109910.0,109900.0,0.34998736]
[1748362331728,0.22746317,109910.0,109900.0,0.34999633]
[1748362332427,0.20016317,109910.0,109900.0,0.35099778]
[1748362332645,0.20016317,109910.0,109900.0,0.35099779]
[1748362333074,0.20016317,109910.0,109900.0,0.86770412]
[1748362333327,0.20016317,109910.0,109900.0,1.26770412]
[1748362333541,0.20016317,109910.0,109900.0,1.25920057]
[1748362333755,0.20016317,109910.0,109900.0,1.26770355]
[1748362334211,0.20016039,109920.0,109910.0,0.19106524]
[1748362334435,0.20016039,109920.0,109900.0,3.56874484]
[1748362334436,0.01819545,109910.0,109900.0,1.0742901]
[1748362334658,0.01819545,109910.0,109900.0,1.93767678]
[1748362334659,0.02729347,109910.0,109900.0,1.93767678]
[1748362334920,0.03639165,109910.0,109900.0,2.1962257]
[1748362335139,0.03639165,109910.0,109900.0,1.94692969]
[1748362335140,0.2183588,109910.0,109900.0,1.94692969]
[1748362335351,0.03639165,109910.0,109900.0,2.05881899]
[1748362335568,0.02729347,109910.0,109900.0,2.08661899]
[1748362335787,0.03639165,109910.0,109900.0,2.60332532]
[1748362335997,0.03639165,109910.0,109900.0,2.60232532]
[1748362336274,0.21122361,109930.0,109920.0,0.34]
[1748362336476,0.20212725,109930.0,109920.0,1.05625513]
[1748362336687,0.19303064,109930.0,109920.0,1.04715698]
[1748362336898,0.18393395,109930.0,109920.0,0.86520648]
[1748362337126,0.18393395,109930.0,109920.0,1.26520648]
[1748362337338,0.18393395,109930.0,109920.0,1.25670633]
[1748362337547,0.18393395,109930.0,109920.0,1.74025327]
[1748362337763,0.18393395,109930.0,109920.0,1.54920533]
[1748362338239,0.18393395,109930.0,109920.0,1.75555327]
[1748362338452,0.18393395,109930.0,109920.0,1.73795683]
[1748362338719,0.02019264,109930.0,109920.0,3.5681184]
[1748362338939,0.22131989,109930.0,109920.0,2.8855804]
[1748362339153,0.22131989,109930.0,109920.0,2.87648346]
[1748362339367,0.21222369,109930.0,109920.0,2.50717346]
[1748362339586,0.20312725,109930.0,109920.0,2.49807627]
[1748362339802,0.20312725,109930.0,109920.0,2.50717354]
[1748362340019,0.20312725,109930.0,109920.0,2.51627073]
[1748362340444,0.21222361,109930.0,109920.0,2.52536784]
[1748362340959,0.003,109930.0,109920.0,4.49230316]
[1748362341233,0.03028826,109930.0,109920.0,4.49230316]
[1748362341456,0.03028818,109930.0,109920.0,4.49230316]
[1748362341716,0.02119198,109930.0,109920.0,4.49230316]
[1748362341958,0.03028826,109930.0,109920.0,6.01540916]
[1748362342170,0.22941535,109930.0,109920.0,4.65444553]
[1748362342399,0.0474814,109930.0,109920.0,4.65444553]
[1748362342635,0.0474814,109930.0,109920.0,4.65544553]
[1748362342862,0.0474814,109930.0,109920.0,4.56103353]
[1748362343093,0.0474814,109930.0,109920.0,4.56204353]
[1748362343317,0.01109595,109930.0,109920.0,4.56204353]
[1748362343551,0.02019215,109930.0,109920.0,4.56204353]
[1748362344014,0.02928826,109930.0,109920.0,5.41640653]
[1748362344249,0.02928826,109930.0,109920.0,5.07576853]
[1748362344468,0.02019198,109930.0,109920.0,5.07576853]
[1748362344694,0.02928818,109930.0,109920.0,5.07576853]
[1748362344916,0.02928818,109930.0,109920.0,1.95786953]
[1748362345129,0.02928818,109930.0,109920.0,5.26029453]
[1748362345347,0.02019198,109930.0,109920.0,5.08023253]
[1748362345561,0.02928809,109930.0,109920.0,5.06558053]
[1748362346000,0.02928809,109930.0,109920.0,5.52685453]
[1748362346226,0.0474809,109930.0,109920.0,4.76731753]
[1748362346477,0.22941559,109930.0,109920.0,4.43653159]
[1748362346719,0.22941551,109930.0,109920.0,3.9289222]
[1748362346934,0.04748156,109930.0,109920.0,4.44562853]
[1748362347159,0.04748156,109930.0,109920.0,4.54414853]
[1748362347407,0.03838495,109930.0,109920.0,4.64960653]
[1748362347639,0.02019223,109930.0,109920.0,4.78848253]
[1748362347892,0.002,109930.0,109920.0,5.20099953]
[1748362348132,0.0292842,109950.0,109940.0,0.54010871]
[1748362348376,0.21118506,109950.0,109940.0,2.26714246]
[1748362348655,0.20209052,109950.0,109940.0,2.26714246]
[1748362348875,0.20209052,109950.0,109940.0,2.68533378]
[1748362349113,0.21118556,109950.0,109940.0,2.68533378]
[1748362349338,0.21133395,109950.0,109940.0,2.68533378]
[1748362349825,0.21333395,109950.0,109940.0,2.68533378]
[1748362350058,0.21533395,109950.0,109940.0,2.719221]
[1748362350530,0.20623916,109950.0,109940.0,2.719221]
[1748362350748,0.20623916,109950.0,109940.0,2.72831645]
[1748362350963,0.20623916,109950.0,109940.0,2.719221]
[1748362351465,0.20623916,109950.0,109940.0,2.70102968]
[1748362351669,0.20623916,109950.0,109940.0,3.00032968]
[1748362352575,0.19714429,109950.0,109940.0,3.00032968]
[1748362353251,0.18804925,109950.0,109940.0,2.8093165]
[1748362353708,0.18804925,109950.0,109940.0,2.5034585]
[1748362353924,0.23914925,109950.0,109940.0,2.5034585]
[1748362354583,0.21334925,109950.0,109940.0,2.5034585]
[1748362358658,0.23984925,109950.0,109940.0,2.1308985]
[1748362358893,0.23984925,109950.0,109940.0,2.4147785]
[1748362360905,0.23984925,109950.0,109940.0,1.0393]
[1748362361124,0.23984925,109950.0,109940.0,0.2993]
[1748362361592,0.23984925,109950.0,109940.0,1.0393]
[1748362361852,0.23984925,109950.0,109940.0,0.6393]
[1748362363704,0.23984925,109950.0,109940.0,0.34]
[1748362368263,0.23984925,109950.0,109940.0,0.89059355]
[1748362368489,0.23984925,109950.0,109940.0,0.91763277]
[1748362368714,0.23984925,109950.0,109940.0,0.89059355]
[1748362369614,0.23984925,109950.0,109940.0,1.18989355]
[1748362370749,0.21334925,109950.0,109940.0,1.18989355]
[1748362370966,0.18804925,109950.0,109940.0,2.22570255]
[1748362371189,0.18804925,109950.0,109940.0,2.25805855]
[1748362371415,0.18804925,109950.0,109940.0,2.46144955]
[1748362371656,0.24014925,109950.0,109940.0,1.96241355]
[1748362372099,0.24014925,109950.0,109940.0,1.67849355]
[1748362373234,0.24014925,109950.0,109940.0,1.27849355]
[1748362373667,0.24014925,109950.0,109940.0,1.67849355]
[1748362374089,0.18804925,109950.0,109940.0,1.67849355]
[1748362374302,0.18804925,109950.0,109940.0,4.48357655]
[1748362374563,0.18804925,109950.0,109940.0,1.74403155]
[1748362374786,0.18804925,109950.0,109940.0,1.27422755]
[1748362375003,0.18804925,109950.0,109940.0,1.67422755]
[1748362375217,0.18804925,109950.0,109940.0,1.47666155]
[1748362375453,0.24244925,109950.0,109940.0,1.03919355]
[1748362376135,0.24244925,109950.0,109940.0,0.63919355]
[1748362377680,0.24244925,109950.0,109940.0,0.55059355]
[1748362377893,0.18804925,109950.0,109940.0,1.33316855]
[1748362380314,0.18804925,109950.0,109940.0,1.51508595]
[1748362380544,0.18804925,109950.0,109940.0,1.33316855]
[1748362380780,0.18804925,109950.0,109940.0,1.51508595]
[1748362381088,0.20623874,109950.0,109940.0,2.45262277]
[1748362381336,0.19714412,109950.0,109940.0,2.3593215]
[1748362381585,0.19714412,109950.0,109940.0,0.55059355]
[1748362381814,0.25074412,109950.0,109940.0,0.55059355]
[1748362382730,0.22414412,109950.0,109940.0,0.55059355]
[1748362383723,0.19714412,109950.0,109940.0,2.10788955]
[1748362383944,0.19714412,109950.0,109940.0,1.89686355]
[1748362384482,0.19714412,109950.0,109940.0,2.19616355]
[1748362384772,0.19714412,109950.0,109940.0,2.02067055]
[1748362385281,0.20623916,109950.0,109940.0,2.32973777]
[1748362385508,0.20623916,109950.0,109940.0,2.35337424]
[1748362385509,0.20623925,109950.0,109940.0,2.35337424]
[1748362385794,0.28111899,109980.0,109960.0,0.57616563]
[1748362385795,0.18192259,109980.0,109960.0,0.57616563]
[1748362386082,0.21004501,109990.0,109970.0,2.96547138]
[1748362386321,0.21004501,109990.0,109980.0,2.08440755]
[1748362386322,0.177776,109990.0,109980.0,2.08440755]
[1748362386582,0.20791314,110000.0,109980.0,2.08440755]
[1748362386583,0.18191314,110000.0,109990.0,1.816334]
[1748362386839,0.00909157,109990.0,109980.0,0.66718212]
[1748362387098,0.20910899,109990.0,109980.0,2.99723214]
[1748362387346,0.21820064,109990.0,109980.0,3.0208653]
[1748362387588,0.21920064,109990.0,109980.0,3.02995753]
[1748362387835,0.20910941,109990.0,109980.0,2.9145153]
[1748362388090,0.19092636,109990.0,109980.0,2.56943323]
[1748362388356,0.19092636,109990.0,109980.0,2.75805086]
[1748362388600,0.18183471,109990.0,109980.0,2.7667166]
[1748362388873,0.19092628,109990.0,109980.0,2.80200891]
[1748362389169,0.18191314,110000.0,109990.0,0.54001793]
[1748362389377,0.20009453,110000.0,109990.0,0.94436143]
[1748362389641,0.19100396,110000.0,109990.0,3.19152887]
[1748362389884,0.19100396,110000.0,109990.0,3.20062044]
[1748362390116,0.19100396,110000.0,109990.0,2.85361844]
[1748362390359,0.19100396,110000.0,109990.0,2.94567239]
[1748362390579,0.19100396,110000.0,109990.0,2.62107239]
[1748362390824,0.0181809,110000.0,109990.0,2.65379579]
[1748362391071,0.19293842,110010.0,110000.0,0.20909015]
[1748362391307,0.17985027,110010.0,110000.0,2.89293428]
[1748362391553,0.17985027,110010.0,110000.0,2.44822738]
[1748362391806,0.17985027,110010.0,110000.0,2.37708038]
[1748362392046,0.17985027,110010.0,110000.0,2.77708038]
[1748362392553,0.18098528,110010.0,110000.0,2.10093295]
[1748362392791,0.18098528,110010.0,110000.0,2.61669438]
[1748362393011,0.18198528,110010.0,110000.0,2.95699795]
[1748362393240,0.18198528,110010.0,110000.0,2.98209795]
[1748362393786,0.02940416,110010.0,110000.0,3.54749056]
[1748362394012,0.22029581,110010.0,110000.0,4.67852923]
[1748362394490,0.21120623,110010.0,110000.0,4.67852923]
[1748362394747,0.00213501,110010.0,110000.0,4.68761956]
[1748362394994,0.20003636,110020.0,110010.0,0.61471175]
[1748362394995,0.02726643,110020.0,110010.0,0.61471175]
[1748362395251,0.02726643,110020.0,110010.0,2.50430423]
[1748362395252,0.19996321,110020.0,110010.0,2.50430423]
[1748362395512,0.19996321,110020.0,110010.0,2.48773723]
[1748362395513,0.19087421,110020.0,110010.0,2.48773723]
[1748362395791,0.24317421,110020.0,110010.0,0.652945]
[1748362396047,0.23410165,110010.0,110000.0,0.51876143]
[1748362396354,0.23410165,110010.0,110000.0,0.91676143]
[1748362396542,0.23410165,110010.0,110000.0,0.91576143]
[1748362396748,0.23310165,110010.0,110000.0,0.91576143]
[1748362397715,0.23210165,110010.0,110000.0,0.91676143]
[1748362397959,0.18178512,110020.0,110010.0,0.00909008]
[1748362398202,0.02726899,110010.0,110000.0,1.07690209]
[1748362398443,0.02726668,110020.0,110010.0,0.27200011]
[1748362398721,0.18388935,110030.0,110020.0,0.20905188]
[1748362398722,0.02017644,110030.0,110020.0,0.20905188]
[1748362398962,0.22920974,110030.0,110020.0,2.98680859]
[1748362399207,0.21103363,110030.0,110020.0,2.97771967]
[1748362399432,0.21103363,110030.0,110020.0,2.98680876]
[1748362399669,0.21103363,110030.0,110020.0,1.09970776]
[1748362399916,0.21103363,110030.0,110020.0,3.61071076]
[1748362400475,0.21303363,110030.0,110020.0,3.95979968]
[1748362400765,0.21303363,110030.0,110020.0,4.32317168]
[1748362401060,0.21303363,110030.0,110020.0,4.08917168]
[1748362401349,0.20394537,110030.0,110020.0,4.26942576]
[1748362401779,0.20394537,110030.0,110020.0,4.31913876]
[1748362401996,0.20594537,110030.0,110020.0,4.60722776]
[1748362402262,0.19685703,110030.0,110020.0,2.64360143]
[1748362402467,0.24965703,110030.0,110020.0,2.105665]
[1748362402665,0.24965703,110030.0,110020.0,2.056754]
[1748362404282,0.24965703,110030.0,110020.0,0.2993]
[1748362407887,0.19087421,110020.0,110010.0,0.85576143]
[1748362408106,0.24207421,110020.0,110010.0,0.85576143]
[1748362408323,0.24207421,110020.0,110010.0,1.25576143]
[1748362409644,0.24307421,110020.0,110010.0,0.74]
[1748362410357,0.24407421,110020.0,110010.0,0.74]
[1748362410985,0.24407421,110020.0,110010.0,0.34]
[1748362413251,0.24407421,110020.0,110010.0,0.85576143]
[1748362413862,0.24407421,110020.0,110010.0,1.15506143]
[1748362414087,0.24407421,110020.0,110010.0,1.55506143]
[1748362414290,0.24407421,110020.0,110010.0,1.0393]
[1748362414500,0.24407421,110020.0,110010.0,1.55506143]
[1748362416282,0.20196321,110020.0,110010.0,5.53970703]
[1748362416488,0.20196321,110020.0,110010.0,3.76737038]
[1748362417586,0.20196321,110020.0,110010.0,3.73715838]
[1748362417835,0.25416321,110020.0,110010.0,1.44132]
[1748362418487,0.22746321,110020.0,110010.0,1.44132]
[1748362418700,0.22746321,110020.0,110010.0,1.04132]
[1748362419419,0.22746321,110020.0,110010.0,1.95708143]
[1748362419640,0.25276321,110020.0,110010.0,1.95708143]
[1748362420065,0.25276321,110020.0,110010.0,1.99135442]
[1748362421384,0.25276321,110020.0,110010.0,1.59135442]
[1748362421608,0.25276321,110020.0,110010.0,1.18933442]
[1748362421824,0.25276321,110020.0,110010.0,1.58933442]
[1748362427925,0.22746321,110020.0,110010.0,1.58933442]
[1748362428445,0.20196321,110020.0,110010.0,2.63729924]
[1748362428675,0.20196321,110020.0,110010.0,2.43754845]
[1748362428676,0.19287421,110020.0,110010.0,2.43754845]
[1748362428890,0.19287421,110020.0,110010.0,1.87842395]
[1748362429099,0.19287421,110020.0,110010.0,1.86018137]
[1748362429317,0.21897421,110020.0,110010.0,1.31014695]
[1748362429535,0.21897421,110020.0,110010.0,1.76912742]
[1748362435218,0.21897421,110020.0,110010.0,2.05280742]
[1748362435649,0.21897421,110020.0,110010.0,1.65280742]
[1748362435860,0.21897421,110020.0,110010.0,0.819093]
[1748362436087,0.21897421,110020.0,110010.0,1.36912742]
[1748362437135,0.24487421,110020.0,110010.0,0.34]
[1748362437348,0.24487421,110020.0,110000.0,1.13297442]
[1748362437349,0.24189156,110010.0,110000.0,1.13297442]
[1748362437573,0.24189156,110010.0,110000.0,0.6993]
[1748362437791,0.24189156,110010.0,110000.0,1.74953442]
[1748362438203,0.24189156,110010.0,110000.0,1.34953442]
[1748362438623,0.24189156,110010.0,110000.0,1.19033442]
[1748362439057,0.24189156,110010.0,110000.0,1.19133442]
[1748362440158,0.24189156,110010.0,110000.0,0.6413]
[1748362440349,0.24189156,110010.0,110000.0,1.19133442]
[1748362441059,0.21599156,110010.0,110000.0,1.19133442]
[1748362441280,0.21599156,110010.0,110000.0,1.85431042]
[1748362441747,0.21599156,110010.0,110000.0,2.40434484]
[1748362441980,0.19089156,110010.0,110000.0,2.40434484]
[1748362443349,0.19089156,110010.0,110000.0,1.85431042]
[1748362443630,0.19089156,110010.0,110000.0,2.40434484]
[1748362443858,0.19089156,110010.0,110000.0,2.80434484]
[1748362444592,0.19089156,110010.0,110000.0,2.25431042]
[1748362445463,0.19089156,110010.0,110000.0,2.89539879]
[1748362446389,0.19089156,110010.0,110000.0,2.15110837]
[1748362446618,0.24359156,110010.0,110000.0,2.08949537]
[1748362446833,0.24359156,110010.0,110000.0,2.01960337]
[1748362447051,0.24359156,110010.0,110000.0,1.59133442]
[1748362448000,0.24359156,110010.0,110000.0,1.0413]
[1748362448214,0.24359156,110010.0,110000.0,1.59133442]
[1748362451949,0.24359156,110010.0,110000.0,1.19133442]
[1748362452619,0.24359156,110010.0,110000.0,0.6413]
[1748362453308,0.24359156,110010.0,110000.0,0.342]
[1748362454197,0.31449723,110010.0,110000.0,0.342]
[1748362454414,0.24359156,110010.0,110000.0,0.342]
[1748362455342,0.52727156,110010.0,110000.0,0.342]
[1748362455564,0.52727156,110010.0,110000.0,0.89203442]
[1748362455790,0.24359156,110010.0,110000.0,0.89203442]
[1748362457383,0.21829156,110010.0,110000.0,0.89203442]
[1748362457823,0.24549156,110010.0,110000.0,0.89203442]
[1748362458267,0.24549156,110010.0,110000.0,1.19133442]
[1748362459160,0.24549156,110010.0,110000.0,0.6413]
[1748362459372,0.24549156,110010.0,110000.0,1.19133442]
[1748362460039,0.24311981,110010.0,110000.0,1.19133442]
[1748362461819,0.24311981,110010.0,110000.0,1.59133442]
[1748362462263,0.18851981,110010.0,110000.0,1.59133442]